bitfinex-derivatives/quotes_SOLF0:USTF0_20260312
["timestamp","ask_amount","ask_price","bid_price","bid_amount"]
[1773300690053,11.40775375,85.549,85.51,10.524]
[1773300691044,11.40276056,85.562,85.51,2.55231568]
[1773300691855,11.40270622,85.559,85.51,2.55231568]
[1773300692056,11.40270622,85.559,85.49,21.053]
[1773300692057,11.40270622,85.559,85.5,2.55231568]
[1773300692654,11.40270622,85.559,85.501,36.82]
[1773300693057,11.40433318,85.556,85.501,36.82]
[1773300694155,11.40433318,85.556,85.517,10.523]
[1773300696758,11.40433318,85.556,85.524,10.522]
[1773300698661,11.40433318,85.556,85.503,36.82]
[1773300699762,11.40433318,85.556,85.523,10.522]
[1773300701165,11.40433318,85.556,85.51,2.54996988]
[1773300703062,11.40433318,85.556,85.525,10.522]
[1773300704066,11.40433318,85.556,85.51,2.54996988]
[1773300705863,17.02441486,85.563,85.529,10.522]
[1773300706068,204.10469961,85.91,85.503,36.82]
[1773300706069,11.64462411,85.585,85.55,2.54996988]
[1773300706370,11.64462411,85.585,85.53,2.54996988]
[1773300707361,11.64462411,85.585,85.54,2.54996988]
[1773300708765,11.64462411,85.585,85.482,28.82287173]
[1773300708766,11.65075754,85.606,85.56,2.54996988]
[1773300709558,8.76154634,85.619,85.58,2.54996988]
[1773300709764,8.76154634,85.619,85.503,163.727]
[1773300709765,11.65072327,85.639,85.6,2.54996988]
[1773300710162,11.65072327,85.639,85.603,10.513]
[1773300710364,11.65072327,85.653,85.61,2.54996988]
[1773300710565,11.65072327,85.653,85.62,2.54996988]
[1773300710770,11.65072327,85.653,85.61,2.54996988]
[1773300711561,11.73233088,85.669,85.63,2.54996988]
[1773300711770,11.73233088,85.669,85.62,2.54996988]
[1773300712373,11.73233088,85.669,85.603,11.47948974]
[1773300712671,11.73233088,85.669,85.586,35.12]
[1773300712974,11.73233088,85.669,85.62,2.54996988]
[1773300713173,11.73233088,85.669,85.617,36.8]
[1773300713467,11.73233088,85.669,85.62,2.54996988]
[1773300714070,11.73233088,85.669,85.63,2.54996988]
[1773300714476,11.76982909,85.689,85.64,2.54996988]
[1773300715074,11.76982909,85.689,85.585,21.03]
[1773300715075,11.76982909,85.689,85.65,2.54996988]
[1773300715278,11.77426404,85.719,85.66,2.54996988]
[1773300716270,2.54996988,85.72,85.65,36.78]
[1773300716271,0.07396026,85.698,85.65,36.78]
[1773300716476,11.7742394,85.697,85.652,10.507]
[1773300716673,0.07396026,85.698,85.65,2.54996988]
[1773300717075,0.07396026,85.698,85.66,2.54996988]
[1773300717273,11.82306864,85.698,85.652,10.507]
[1773300717579,11.74910838,85.698,85.652,10.507]
[1773300718468,11.74910838,85.698,85.641,36.78]
[1773300718469,11.88752458,85.711,85.66,2.54996988]
[1773300718673,11.88752458,85.711,85.67,2.54996988]
[1773300719472,11.8875078,85.751,85.69,2.54996988]
[1773300719676,11.8875078,85.749,85.68,2.54996988]
[1773300719878,11.8875078,85.732,85.695,10.501]
[1773300720273,11.8875078,85.732,85.69,2.54996988]
[1773300720477,11.8875078,85.732,85.695,10.501]
[1773300721174,11.87285943,85.766,85.674,163.401]
[1773300721485,11.87285943,85.766,85.73,2.54996988]
[1773300721890,16.7052008,85.777,85.73,2.54996988]
[1773300722176,11.87284029,85.776,85.72,2.54996988]
[1773300722378,11.87284029,85.776,85.717,36.76]
[1773300722379,2.54996988,85.77,85.717,36.76]
[1773300722572,11.80264073,85.749,85.633,163.479]
[1773300722777,11.80264073,85.729,85.687,10.502]
[1773300723082,11.80264073,85.729,85.68,2.54996988]
[1773300723471,11.80264073,85.729,85.685,10.502]
[1773300723677,11.80264073,85.729,85.68,2.54996988]
[1773300723980,11.80264073,85.729,85.693,10.501]
[1773300724478,11.80261996,85.776,85.69,2.54996988]
[1773300724684,11.91884709,85.749,85.69,2.54996988]
[1773300725681,11.91884709,85.749,85.703,10.5]
[1773300725878,11.91884709,85.749,85.668,36.76]
[1773300726181,11.91884709,85.749,85.669,36.76]
[1773300726381,11.91884709,85.749,85.698,10.501]
[1773300726780,2.27822546,85.729,85.657,10.506]
[1773300727378,2.27822546,85.729,85.668,7.26051548]
[1773300727983,2.30689721,85.726,85.668,7.26051548]
[1773300728180,2.30689721,85.726,85.664,10.505]
[1773300728488,2.30689721,85.726,85.674,10.504]
[1773300728783,2.30689721,85.726,85.651,7.26051548]
[1773300728986,2.58993583,85.721,85.651,7.26051548]
[1773300729885,2.61733599,85.709,85.639,7.26051548]
[1773300730684,2.61277818,85.694,85.639,7.26051548]
[1773300731584,2.61277818,85.694,85.64,10.508]
[1773300732282,2.61277818,85.694,85.658,0.07463538]
[1773300734985,36.74,85.749,85.658,0.07463538]
[1773300734986,2.69860604,85.715,85.658,0.07463538]
[1773300735484,2.69770792,85.705,85.644,7.26051548]
[1773300736185,2.69770792,85.705,85.666,0.07372737]
[1773300736988,6.34763872,85.71,85.666,0.07372737]
[1773300736989,2.82050576,85.703,85.666,0.07372737]
[1773300737980,2.84545762,85.702,85.666,0.07372737]
[1773300741486,14.27414624,85.776,85.666,0.07372737]
[1773300741487,2.95154337,85.716,85.666,7.22776926]
[1773300741789,10.88807251,85.776,85.666,7.22776926]
[1773300741790,2.97577799,85.731,85.679,7.15404189]
[1773300741986,2.97577799,85.759,85.679,7.15404189]
[1773300742288,2.97577799,85.744,85.691,10.502]
[1773300742692,2.97577799,85.744,85.679,7.15404189]
[1773300742888,2.99774808,85.739,85.682,7.15404189]
[1773300743992,3.02078858,85.736,85.682,7.15404189]
[1773300744386,3.02078858,85.736,85.683,10.503]
[1773300744387,10.497,85.735,85.683,10.503]
[1773300744586,2.99533012,85.734,85.683,10.503]
[1773300746291,13.5380467,85.732,85.683,10.503]
[1773300746895,3.15188591,85.731,85.683,10.503]
[1773300747194,3.15188591,85.731,85.683,17.65704189]
[1773300747891,10.497,85.732,85.684,7.15404189]
[1773300748095,10.496,85.742,85.687,7.15404189]
[1773300748390,10.496,85.742,85.699,0.07357951]
[1773300749000,3.15789921,85.736,85.699,0.07357951]
[1773300749502,3.15789921,85.736,85.674,7.15404189]
[1773300749802,3.15789921,85.736,85.692,7.15404189]
[1773300750404,3.15789921,85.736,85.705,0.07353795]
[1773300750901,13.65389921,85.736,85.705,0.07353795]
[1773300751103,3.28044286,85.735,85.705,0.07353795]
[1773300751606,3.28044286,85.735,85.692,7.15404189]
[1773300752203,10.497,85.732,85.692,7.15404189]
[1773300752896,3.28044286,85.735,85.703,0.07454955]
[1773300753405,10.495,85.748,85.703,0.07454955]
[1773300753701,3.32251302,85.749,85.703,0.07454955]
[1773300753901,3.32251302,85.749,85.692,7.15404189]
[1773300754596,10.497,85.734,85.695,10.501]
[1773300754794,10.497,85.734,85.696,7.15404189]
[1773300756011,10.497,85.734,85.706,0.07387201]
[1773300756312,3.31245825,85.741,85.706,0.07387201]
[1773300756810,3.31245825,85.741,85.702,10.5]
[1773300760012,3.31245825,85.741,85.703,7.15404189]
[1773300763212,3.31245825,85.741,85.69,8.06065751]
[1773300763712,10.497,85.732,85.69,8.06065751]
[1773300765719,10.497,85.732,85.702,0.07480306]
[1773300767220,10.498,85.724,85.702,0.07480306]
[1773300767519,3.53698876,85.756,85.703,8.06065751]
[1773300767718,3.53698876,85.756,85.702,0.07480306]
[1773300768023,3.53698876,85.756,85.69,8.06065751]
[1773300768216,10.497,85.731,85.69,8.06065751]
[1773300769521,10.496,85.739,85.692,8.06065751]
[1773300769723,10.496,85.739,85.702,0.07477064]
[1773300771617,10.497,85.732,85.702,0.07477064]
[1773300775325,10.498,85.723,85.702,0.07477064]
[1773300775923,10.497,85.73,85.702,0.07477064]
[1773300776322,10.497,85.73,85.652,35.12]
[1773300776323,3.53689406,85.729,85.67,7.51395457]
[1773300776621,10.5,85.705,85.67,7.51395457]
[1773300777221,10.501,85.697,85.67,7.51395457]
[1773300777425,3.4738117,85.712,85.67,7.51395457]
[1773300777622,3.47323328,85.725,85.671,7.51395457]
[1773300777826,10.498,85.724,85.679,7.51395457]
[1773300778027,3.47323328,85.725,85.679,7.51395457]
[1773300778226,3.48897369,85.719,85.679,7.51395457]
[1773300778429,10.499,85.711,85.679,7.51395457]
[1773300780723,10.5,85.706,85.665,7.51395457]
[1773300780930,3.57423046,85.699,85.652,7.51395457]
[1773300782029,10.502,85.691,85.652,7.51395457]
[1773300782233,3.58878523,85.689,85.652,7.51395457]
[1773300782730,3.58878523,85.689,85.639,7.51395457]
[1773300782930,2.54074151,85.69,85.639,7.51395457]
[1773300782931,14.05795836,85.685,85.639,7.51395457]
[1773300783227,3.55495836,85.685,85.639,7.51395457]
[1773300783530,10.503,85.679,85.639,7.51395457]
[1773300784130,10.504,85.672,85.639,7.51395457]
[1773300785730,10.505,85.669,85.639,7.51395457]
[1773300785931,3.56169927,85.707,85.639,7.51395457]
[1773300786126,10.84006082,85.709,85.639,7.51395457]
[1773300786127,2.54074151,85.69,85.639,7.51395457]
[1773300786522,10.502,85.694,85.646,10.507]
[1773300786721,14.45341443,85.73,85.617,36.74]
[1773300786722,6.07851429,85.71,85.651,7.51395457]
[1773300788136,10.5,85.708,85.661,7.51395457]
[1773300789137,10.5,85.708,85.664,10.505]
[1773300789533,10.5,85.708,85.661,7.51395457]
[1773300790936,14.19832545,85.708,85.661,7.51395457]
[1773300791738,10.498,85.724,85.663,7.51395457]
[1773300791938,10.498,85.724,85.671,7.51395457]
[1773300792341,10.498,85.724,85.679,7.51395457]
[1773300793843,2.54074151,85.72,85.679,7.51395457]
[1773300794140,2.54074151,85.7,85.663,7.51395457]
[1773300794337,2.54074151,85.68,85.642,7.51395457]
[1773300794845,2.54074151,85.69,85.646,7.51395457]
[1773300795039,2.54074151,85.69,85.601,7.51395457]
[1773300795040,2.54074151,85.66,85.601,7.51395457]
[1773300795240,14.45341443,85.729,85.528,163.68]
[1773300795241,2.54074151,85.67,85.621,7.51395457]
[1773300796042,13.04474151,85.67,85.621,7.51395457]
[1773300798947,3.71727731,85.679,85.626,7.51395457]
[1773300799548,10.504,85.677,85.628,7.51395457]
[1773300802048,0.07404333,85.661,85.628,7.51395457]
[1773300804948,0.07404333,85.661,85.597,48.1375957]
[1773300804949,3.94643743,85.692,85.641,8.31291336]
[1773300805152,2.54074151,85.69,85.641,8.31291336]
[1773300806044,10.502,85.689,85.641,8.31291336]
[1773300806644,10.502,85.689,85.644,8.31291336]
[1773300807151,10.502,85.689,85.658,0.07379574]
[1773300811748,4.20999742,85.685,85.658,0.07379574]
[1773300812450,10.503,85.683,85.658,0.07379574]
[1773300812656,6.71947326,85.68,85.658,0.07379574]
[1773300813247,10.504,85.676,85.632,8.31291336]
[1773300813442,4.18883994,85.675,85.633,18.82191336]
[1773300813643,4.18883994,85.675,85.634,8.31291336]
[1773300815255,10.504,85.674,85.634,8.31291336]
[1773300815853,36.76,85.715,85.641,8.31291336]
[1773300815854,14.86678346,85.688,85.641,8.31291336]
[1773300816053,4.36478346,85.688,85.641,8.31291336]
[1773300817056,10.503,85.681,85.641,8.31291336]
[1773300817750,10.503,85.683,85.642,10.508]
[1773300817951,2.54300645,85.68,85.643,8.31291336]
[1773300818749,10.503,85.683,85.643,8.31291336]
[1773300818955,4.36478346,85.688,85.646,10.507]
[1773300819557,4.36478346,85.688,85.658,0.07381398]
[1773300820154,14.94783635,85.687,85.658,0.07381398]
[1773300820956,10.502,85.694,85.658,0.07381398]
[1773300821156,2.54300645,85.69,85.658,0.07381398]
[1773300821558,2.54300645,85.69,85.654,8.31291336]
[1773300821958,10.502,85.689,85.654,8.31291336]
[1773300822158,4.48641363,85.688,85.642,8.35262178]
[1773300822456,4.48641363,85.688,85.649,10.507]
[1773300822658,4.48641363,85.688,85.65,8.35262178]
[1773300823858,10.503,85.678,85.637,8.35262178]
[1773300824157,2.54300645,85.67,85.621,8.35262178]
[1773300824361,4.56632585,85.679,85.621,8.35262178]
[1773300824560,9.00019267,85.678,85.621,8.35262178]
[1773300824761,9.00019267,85.677,85.621,8.35262178]
[1773300824959,2.54300645,85.67,85.621,8.35262178]
[1773300825264,4.60757447,85.669,85.628,10.509]
[1773300828366,4.60757447,85.669,85.64,0.07379574]
[1773300828765,2.54300645,85.65,85.609,8.35262178]
[1773300828963,0.0742319,85.657,85.61,2.54300645]
[1773300829174,0.0742319,85.657,85.611,8.35262178]
[1773300829363,4.53890612,85.669,85.611,8.35262178]
[1773300830064,0.07392878,85.649,85.624,7.74410079]
[1773300831668,13.04600645,85.68,85.624,7.74410079]
[1773300831864,2.54300645,85.69,85.631,7.74410079]
[1773300832466,7.17943124,85.69,85.631,7.74410079]
[1773300833076,10.502,85.689,85.641,7.74410079]
[1773300833368,7.17943124,85.69,85.641,7.74410079]
[1773300834470,7.17943124,85.69,85.644,7.74410079]
[1773300834672,10.501,85.697,85.644,7.74410079]
[1773300835173,8.87093772,85.696,85.644,7.74410079]
[1773300835371,8.87093772,85.695,85.644,7.74410079]
[1773300835575,10.501,85.697,85.662,0.07362868]
[1773300837573,4.68386617,85.716,85.674,10.504]
[1773300837775,8.87499764,85.715,85.674,10.504]
[1773300837974,8.87499764,85.714,85.674,10.504]
[1773300838276,4.69141857,85.715,85.674,10.504]
[1773300838572,8.87680901,85.714,85.674,10.504]
[1773300838772,4.69141857,85.715,85.674,10.504]
[1773300838972,8.87680901,85.714,85.674,10.504]
[1773300839274,4.69141857,85.715,85.674,10.504]
[1773300840573,10.498,85.724,85.675,7.74410079]
[1773300840777,4.71777027,85.729,85.681,7.74410079]
[1773300841775,10.496,85.74,85.691,7.74410079]
[1773300841975,10.496,85.74,85.697,7.74410079]
[1773300842177,4.72504458,85.742,85.697,7.74410079]
[1773300842874,10.495,85.747,85.706,7.74410079]
[1773300846782,10.494,85.755,85.708,7.74410079]
[1773300847183,4.95401973,85.756,85.712,7.74410079]
[1773300848082,4.95401973,85.756,85.714,10.499]
[1773300848479,5.11456489,85.749,85.691,7.74410079]
[1773300849283,2.54300645,85.74,85.691,7.74410079]
[1773300850182,2.54300645,85.74,85.704,10.5]
[1773300851082,5.11456489,85.749,85.709,10.5]
[1773300851384,5.11456489,85.749,85.713,0.07380483]
[1773300852986,5.14033815,85.746,85.713,0.07380483]
[1773300856188,2.54300645,85.74,85.713,0.07380483]
[1773300856990,5.14033815,85.746,85.713,0.07380483]
[1773300857191,2.54300645,85.74,85.713,0.07380483]
[1773300857390,5.14033815,85.746,85.713,0.07380483]
[1773300858091,10.495,85.743,85.713,0.07380483]
[1773300859894,5.14033815,85.746,85.713,0.07380483]
[1773300862399,5.14033815,85.746,85.714,10.499]
[1773300863699,5.14033815,85.746,85.713,0.07380483]
[1773300864495,5.23797763,85.739,85.713,0.07380483]
[1773300864998,5.23797763,85.739,85.693,7.90133202]
[1773300864999,5.23797763,85.739,85.705,10.5]
[1773300865600,5.23797763,85.739,85.705,7.90133202]
[1773300866202,5.24924842,85.767,85.715,7.90133202]
[1773300867101,10.493,85.765,85.722,18.39933202]
[1773300867398,5.24924842,85.767,85.723,7.90133202]
[1773300867806,5.24924842,85.767,85.727,7.90133202]
[1773300868207,5.11156505,85.759,85.711,7.90133202]
[1773300868707,2.54300645,85.77,85.713,7.90133202]
[1773300869107,8.02031284,85.77,85.713,7.90133202]
[1773300869905,5.47730639,85.77,85.723,7.90133202]
[1773300870200,8.02031284,85.77,85.723,7.90133202]
[1773300870514,5.82333892,85.749,85.711,7.90133202]
[1773300870708,5.82333892,85.749,85.691,7.90133202]
[1773300872103,5.82333892,85.749,85.704,7.90133202]
[1773300875608,2.54300645,85.75,85.704,7.90133202]
[1773300875609,5.86936777,85.747,85.704,7.90133202]
[1773300876404,10.495,85.746,85.704,7.90133202]
[1773300876910,16.32540292,85.746,85.704,7.90133202]
[1773300877805,5.83547157,85.745,85.704,7.90133202]
[1773300878010,5.83547157,85.739,85.696,7.90133202]
[1773300879109,5.83547157,85.739,85.699,7.90133202]
[1773300882110,16.33147157,85.739,85.7,19.06546912]
[1773300882313,16.33147157,85.739,85.701,8.56446912]
[1773300885415,2.53909179,85.75,85.701,8.56446912]
[1773300885619,5.39102101,85.762,85.711,8.56446912]
[1773300885813,5.39528335,85.76,85.711,8.56446912]
[1773300886019,14.23820743,85.759,85.711,8.56446912]
[1773300886223,8.84292408,85.758,85.711,8.56446912]
[1773300886413,8.84292408,85.757,85.711,8.56446912]
[1773300886609,5.39528335,85.759,85.711,8.56446912]
[1773300886814,5.38756297,85.757,85.714,8.56446912]
[1773300887016,8.8474336,85.756,85.714,8.56446912]
[1773300887216,8.8474336,85.755,85.714,8.56446912]
[1773300887418,8.8474336,85.754,85.715,10.499]
[1773300887718,5.38763564,85.749,85.714,8.56446912]
[1773300887919,5.39169942,85.747,85.714,8.56446912]
[1773300888117,8.85021297,85.746,85.694,8.56446912]
[1773300888422,5.39169942,85.746,85.694,8.56446912]
[1773300888616,2.53909179,85.75,85.694,8.56446912]
[1773300888617,5.33341774,85.739,85.711,0.0739939]
[1773300889222,5.33341774,85.739,85.694,8.56446912]
[1773300889815,36.72,85.766,85.68,2.53909179]
[1773300889816,5.34172819,85.729,85.68,8.56446912]
[1773300890020,2.53909179,85.72,85.68,8.56446912]
[1773300890227,5.34172819,85.729,85.68,8.56446912]
[1773300890421,14.19627437,85.728,85.68,8.56446912]
[1773300890616,8.84934548,85.727,85.68,8.56446912]
[1773300890816,5.34692889,85.728,85.68,8.56446912]
[1773300891119,10.497,85.727,85.681,8.3678683]
[1773300891711,10.497,85.727,85.684,8.3678683]
[1773300892114,5.34692889,85.728,85.695,0.07379288]
[1773300894824,10.497,85.735,85.696,10.501]
[1773300895030,8.86308927,85.734,85.696,10.501]
[1773300895219,8.86308927,85.733,85.696,10.501]
[1773300895414,10.497,85.735,85.696,10.501]
[1773300895620,8.86182379,85.734,85.696,10.501]
[1773300895827,8.86182379,85.733,85.696,10.501]
[1773300896126,5.5743946,85.734,85.696,10.501]
[1773300896323,8.86072294,85.733,85.696,10.501]
[1773300896521,5.5743946,85.734,85.696,10.501]
[1773300896722,8.86072294,85.733,85.696,10.501]
[1773300896921,5.5743946,85.734,85.696,10.501]
[1773300897118,8.86072294,85.733,85.696,10.501]
[1773300897320,5.5743946,85.734,85.696,10.501]
[1773300897525,8.85973299,85.733,85.696,10.501]
[1773300897723,5.5743946,85.734,85.696,10.501]
[1773300897921,8.85972635,85.733,85.696,10.501]
[1773300898121,5.5743946,85.734,85.696,10.501]
[1773300899325,2.53909179,85.72,85.695,0.07379288]
[1773300899532,2.53909179,85.73,85.695,0.07379288]
[1773300899930,2.53909179,85.73,85.682,8.3678683]
[1773300900129,2.53909179,85.73,85.685,8.3678683]
[1773300900532,8.2022226,85.73,85.685,8.3678683]
[1773300900733,8.2022226,85.73,85.699,0.07375539]
[1773300901134,5.6666418,85.729,85.699,0.07375539]
[1773300901731,5.67013584,85.721,85.699,0.07375539]
[1773300901932,5.67013584,85.719,85.699,0.07375539]
[1773300902530,5.65955207,85.718,85.672,8.3678683]
[1773300902929,2.53909179,85.72,85.672,18.8718683]
[1773300902930,5.66300318,85.71,85.672,18.8718683]
[1773300903130,5.66300318,85.71,85.66,39.27909179]
[1773300903131,5.66300318,85.699,85.66,45.1078683]
[1773300903335,5.66300318,85.699,85.66,8.3678683]
[1773300904031,5.6665379,85.698,85.66,8.3678683]
[1773300905033,10.501,85.696,85.66,8.3678683]
[1773300905232,0.07353872,85.688,85.66,8.3678683]
[1773300905639,0.07353872,85.688,85.654,10.506]
[1773300906137,5.5021308,85.684,85.648,8.3678683]
[1773300907644,16.04458378,85.679,85.64,36.74]
[1773300908141,10.80110037,85.712,85.634,10.509]
[1773300908142,5.54486687,85.676,85.634,10.509]
[1773300908345,5.54486687,85.669,85.634,10.509]
[1773300908742,5.54486687,85.669,85.622,8.3678683]
[1773300909543,10.505,85.666,85.622,8.3678683]
[1773300909749,7.95529805,85.66,85.622,8.3678683]
[1773300909949,5.41620626,85.659,85.622,8.3678683]
[1773300910151,7.95529805,85.66,85.601,8.3678683]
[1773300911252,0.07365434,85.639,85.614,18.8788683]
[1773300911449,0.07365434,85.639,85.593,8.3678683]
[1773300912453,0.07365434,85.639,85.605,8.3678683]
[1773300913556,0.07365434,85.639,85.606,8.3678683]
[1773300913748,50.40513508,85.795,85.621,8.3678683]
[1773300913749,5.447741,85.689,85.621,8.3678683]
[1773300913955,5.4508351,85.669,85.621,8.3678683]
[1773300914356,5.4508351,85.667,85.621,8.3678683]
[1773300914759,2.53909179,85.66,85.621,8.3678683]
[1773300915462,5.36866481,85.649,85.611,36.74]
[1773300915656,5.36866481,85.649,85.607,8.3678683]
[1773300916053,10.507,85.646,85.607,8.3678683]
[1773300916254,2.53909179,85.64,85.594,8.3678683]
[1773300918264,2.53909179,85.63,85.594,8.3678683]
[1773300918961,10.51,85.628,85.594,8.3678683]
[1773300919455,2.53909179,85.63,85.594,8.3678683]
[1773300921066,2.53909179,85.62,85.581,8.72348418]
[1773300921458,5.38146836,85.627,85.581,8.72348418]
[1773300921660,2.53909179,85.62,85.581,8.72348418]
[1773300921957,21.009,85.67,85.575,36.76]
[1773300921958,7.92338511,85.64,85.583,8.72348418]
[1773300922161,5.38429332,85.639,85.583,8.72348418]
[1773300922361,2.53909179,85.63,85.583,8.72348418]
[1773300922662,2.53909179,85.63,85.599,10.513]
[1773300922961,5.38429332,85.639,85.599,10.513]
[1773300923664,5.38429332,85.639,85.6,8.72348418]
[1773300923966,5.38429332,85.639,85.603,8.72348418]
[1773300924368,5.38429332,85.639,85.591,8.72348418]
[1773300925067,10.508,85.638,85.594,8.72348418]
[1773300926367,5.29746497,85.629,85.586,10.515]
[1773300926566,5.29746497,85.629,85.586,19.23848418]
[1773300926866,5.30543926,85.643,85.589,8.72348418]
[1773300927062,2.53909179,85.64,85.589,8.72348418]
[1773300927259,2.53909179,85.64,85.591,8.72348418]
[1773300927459,2.53909179,85.64,85.599,10.513]
[1773300928059,2.53909179,85.64,85.599,19.23648418]
[1773300928766,2.53909179,85.64,85.599,8.72348418]
[1773300928767,10.508,85.639,85.599,8.72348418]
[1773300930665,10.508,85.639,85.61,0.0737463]
[1773300931767,5.29073036,85.638,85.61,0.0737463]
[1773300931967,5.29073036,85.637,85.61,0.0737463]
[1773300932265,15.79973036,85.637,85.61,0.0737463]
[1773300933465,10.509,85.632,85.61,0.0737463]
[1773300933670,10.509,85.632,85.599,8.72348418]
[1773300933671,2.53909179,85.63,85.59,10.514]
[1773300934972,5.32042143,85.619,85.578,10.516]
[1773300935157,5.32042143,85.619,85.579,8.72348418]
[1773300935364,2.53909179,85.62,85.579,8.72348418]
[1773300935561,2.53909179,85.63,85.579,8.72348418]
[1773300936167,10.51,85.622,85.581,8.72348418]
[1773300936370,0.07429922,85.613,85.581,8.72348418]
[1773300937166,0.07429922,85.613,85.583,8.72348418]
[1773300938275,0.07429922,85.613,85.584,10.515]
[1773300938466,0.07429922,85.613,85.585,8.72348418]
[1773300940169,0.07429922,85.613,85.587,8.72348418]
[1773300947678,5.23515335,85.609,85.562,8.3666424]
[1773300947981,2.5461373,85.59,85.555,36.78]
[1773300949074,2.5461373,85.59,85.552,10.519]
[1773300949275,5.14636629,85.589,85.55,8.3666424]
[1773300949476,5.14636629,85.579,85.537,8.3666424]
[1773300949782,5.14636629,85.579,85.54,8.3666424]
[1773300950178,5.14489289,85.589,85.54,8.3666424]
[1773300951181,5.14489289,85.589,85.517,36.78]
[1773300951182,4.99994821,85.586,85.542,8.70281952]
[1773300951479,4.99994821,85.598,85.551,8.70281952]
[1773300951675,10.514,85.595,85.553,8.70281952]
[1773300955986,2.5461373,85.59,85.553,8.70281952]
[1773300956289,2.5461373,85.59,85.544,10.52]
[1773300956290,4.92540803,85.589,85.544,10.52]
[1773300956693,15.44618911,85.587,85.54,8.70281952]
[1773300956885,2.5461373,85.58,85.54,8.70281952]
[1773300957091,4.93118911,85.592,85.54,8.70281952]
[1773300957692,2.5461373,85.59,85.54,8.70281952]
[1773300958092,7.4790884,85.59,85.542,8.70281952]
[1773300958793,2.5461373,85.6,85.555,8.70281952]
[1773300958989,4.87373494,85.602,85.555,8.70281952]
[1773300959597,10.513,85.601,85.561,10.518]
[1773300959994,2.5461373,85.6,85.561,10.518]
[1773300960195,10.513,85.598,85.555,8.70281952]
[1773300960595,15.44631606,85.598,85.555,8.70281952]
[1773300960794,2.5461373,85.59,85.555,8.70281952]
[1773300961693,7.48299768,85.59,85.555,8.70281952]
[1773300963002,31.82210037,85.625,85.539,8.70281952]
[1773300963003,4.87894471,85.579,85.539,8.70281952]
[1773300963298,2.5461373,85.57,85.521,8.70281952]
[1773300963487,10.517,85.57,85.53,19.22481952]
[1773300963997,10.517,85.57,85.53,8.70281952]
[1773300964295,10.516,85.579,85.534,8.70281952]
[1773300964893,10.516,85.579,85.548,0.07376853]
[1773300968798,4.87425464,85.589,85.548,8.77658805]
[1773300969402,4.87425464,85.582,85.548,0.07376853]
[1773300971504,4.87425464,85.582,85.55,10.519]
[1773300972902,4.87425464,85.582,85.548,0.07376853]
[1773300974097,4.87425464,85.582,85.548,8.77658805]
[1773300974299,13.0601373,85.59,85.548,8.77658805]
[1773300975102,18.04879144,85.59,85.548,8.77658805]
[1773300975300,4.98865414,85.589,85.548,8.77658805]
[1773300976007,4.99001784,85.583,85.548,0.07376853]
[1773300976909,10.515,85.582,85.548,0.07376853]
[1773300977507,2.5461373,85.58,85.548,0.07376853]
[1773300978003,4.99030754,85.582,85.548,0.07376853]
[1773300978209,10.514,85.59,85.548,8.77658805]
[1773300978707,4.99492208,85.609,85.551,8.70281952]
[1773300978910,4.99492208,85.609,85.561,8.70281952]
[1773300980012,10.512,85.605,85.562,10.518]
[1773300980213,10.512,85.605,85.563,8.68630825]
[1773300980813,4.98809869,85.598,85.551,8.68630825]
[1773300981008,2.5461373,85.59,85.551,8.68630825]
[1773300982209,10.514,85.595,85.551,8.68630825]
[1773300983812,4.99949725,85.588,85.547,10.519]
[1773300985015,10.515,85.587,85.547,10.519]
[1773300985212,15.76804019,85.587,85.547,10.519]
[1773300985420,5.25304019,85.586,85.54,8.68630825]
[1773300986208,5.25304019,85.586,85.544,8.68630825]
[1773300986414,10.514,85.591,85.544,8.68630825]
[1773300987016,10.514,85.591,85.548,8.68630825]
[1773300988019,2.5461373,85.59,85.551,19.20530825]
[1773300988218,10.514,85.589,85.551,19.20530825]
[1773300989521,10.513,85.597,85.555,8.68630825]
[1773300990121,10.514,85.593,85.555,8.68630825]
[1773300990713,5.16252087,85.589,85.543,10.52]
[1773300991317,5.16252087,85.589,85.539,8.68630825]
[1773300992324,5.16252087,85.589,85.555,0.07391681]
[1773300992712,2.5461373,85.58,85.555,0.07391681]
[1773300994122,5.16206359,85.582,85.555,0.07391681]
[1773300995627,10.516,85.58,85.555,0.07391681]
[1773301003534,13.06466061,85.58,85.555,0.07391681]
[1773301003721,5.15750198,85.579,85.555,0.07391681]
[1773301007624,10.516,85.574,85.555,0.07391681]
[1773301008136,10.516,85.574,85.504,21.47353353]
[1773301008137,5.1421739,85.569,85.524,8.31315384]